bitfinex-derivatives/quotes_SOLF0:USTF0_20250712
["timestamp","ask_amount","ask_price","bid_price","bid_amount"]
[1752336213118,3.34876231,158.45,158.39,9.6412]
[1752336213319,1.09876231,158.45,158.4,3.33]
[1752336213519,3.34876231,158.45,158.4,3.33]
[1752336213718,6.3094,158.44,158.4,3.33]
[1752336214423,8.5604,158.42,158.4,3.33]
[1752336214818,6.3104,158.42,158.41,3.33]
[1752336215319,3.34876231,158.45,158.39,3.33]
[1752336216322,6.3099,158.43,158.39,9.6409]
[1752336216524,3.34876231,158.45,158.4,3.33]
[1752336216720,2.25,158.44,158.4,3.33]
[1752336217119,2.25,158.42,158.38,0.04821119]
[1752336217325,2.25,158.44,158.39,3.33]
[1752336217520,6.3098,158.43,158.4,3.33]
[1752336218018,6.3097,158.44,158.4,9.6406]
[1752336218217,6.3097,158.44,158.41,3.33]
[1752336218419,2.25,158.49,158.41,5.20573961]
[1752336218620,6.308,158.48,158.45,3.33]
[1752336218815,2.25,158.48,158.46,3.33]
[1752336219123,6.3081,158.47,158.46,3.33]
[1752336219422,5.20573961,158.5,158.47,3.33]
[1752336219423,2.25,158.5,158.47,3.33]
[1752336219618,2.25,158.49,158.47,3.33]
[1752336219919,2.25,158.49,158.48,3.33]
[1752336220128,8.55413778,158.51,158.48,3.33]
[1752336220324,6.3073,158.49,158.48,3.33]
[1752336221924,2.25,158.49,158.46,3.33]
[1752336222125,2.25,158.49,158.47,3.33]
[1752336222526,3.34839817,158.51,158.45,0.04295559]
[1752336222722,2.25,158.53,158.47,6.3079]
[1752336222928,2.25,158.53,158.48,3.33]
[1752336223226,8.55398179,158.54,158.48,9.6375]
[1752336223428,6.3065,158.51,158.49,3.37142189]
[1752336223630,6.3065,158.51,158.5,3.33]
[1752336224223,6.3069,158.5,158.49,3.37142189]
[1752336224627,8.5569,158.5,158.49,3.37142189]
[1752336224930,6.3069,158.5,158.49,3.37142189]
[1752336225430,545.34,158.56,158.49,3.37142189]
[1752336225431,2.24,158.53,158.51,3.46]
[1752336225824,550.54573961,158.56,158.49,0.04142189]
[1752336226024,2.24,158.5,158.49,3.50142189]
[1752336226425,8.5467,158.51,158.49,3.50142189]
[1752336226627,2.24,158.51,158.49,3.50142189]
[1752336226829,2.24,158.51,158.5,3.46]
[1752336227028,8.5465,158.51,158.5,3.46]
[1752336228032,2.24,158.51,158.49,0.04142189]
[1752336228234,6.3069,158.5,158.49,3.50142189]
[1752336231334,187.55801694,158.55,158.49,3.50142189]
[1752336231335,3.33801694,158.55,158.49,3.50142189]
[1752336231535,2.24,158.54,158.49,0.04142189]
[1752336231728,2.24,158.54,158.5,3.46]
[1752336231931,2.24,158.53,158.51,3.46]
[1752336232535,6.3064,158.52,158.51,3.46]
[1752336233728,8.5464,158.52,158.51,3.46]
[1752336233928,6.3064,158.52,158.51,3.46]
[1752336234129,1.09801694,158.55,158.5,3.46]
[1752336234325,189.75801694,158.55,158.5,3.46]
[1752336234529,3.33801694,158.55,158.5,3.46]
[1752336234834,6.3055,158.54,158.51,6.3063]
[1752336235031,6.3055,158.54,158.53,3.46]
[1752336235232,547.58,158.56,158.54,3.46]
[1752336235434,2.24,158.55,158.54,3.46]
[1752336235733,545.34,158.56,158.54,3.46]
[1752336235933,545.34,158.56,158.55,3.46]
[1752336236336,6.3044,158.57,158.54,9.7651]
[1752336236529,6.3044,158.57,158.54,6.3051]
[1752336236734,6.3044,158.57,158.56,3.46]
[1752336236933,8.5444,158.57,158.56,3.46]
[1752336237134,6.3044,158.57,158.56,3.46]
[1752336237336,8.5444,158.57,158.56,3.46]
[1752336237635,2.24,158.57,158.54,3.46]
[1752336237832,2.24,158.56,158.54,3.46]
[1752336238940,6.3049,158.55,158.54,3.46]
[1752336239939,6.3053,158.54,158.53,0.04634746]
[1752336240136,2.24,158.54,158.47,3.46]
[1752336240347,2.24,158.49,158.45,3.46]
[1752336240637,5.20573961,158.46,158.41,5.29910965]
[1752336240837,2.24,158.45,158.39,3.46]
[1752336241037,2.24,158.43,158.36,5.29910965]
[1752336241237,2.24,158.43,158.42,3.46]
[1752336241437,2.24,158.45,158.37,5.20573961]
[1752336241642,2.24,158.47,158.39,5.20573961]
[1752336241842,0.04319883,158.44,158.4,3.46]
[1752336242137,0.04319883,158.44,158.43,3.46]
[1752336242343,2.28319883,158.44,158.38,3.46]
[1752336242538,8.5498,158.43,158.39,6.3112]
[1752336242741,5.20573961,158.45,158.43,3.46]
[1752336242941,2.24,158.46,158.44,3.46]
[1752336243243,2.24,158.46,158.37,5.20573961]
[1752336243244,186.42189019,158.46,158.42,3.46]
[1752336243543,186.42189019,158.46,158.41,5.20573961]
[1752336243544,0.04189019,158.46,158.41,5.20573961]
[1752336243945,0.04189019,158.46,158.44,3.46]
[1752336244138,0.04189019,158.46,158.45,6.3089]
[1752336244440,0.04189019,158.46,158.45,3.46]
[1752336245341,2.28189019,158.46,158.43,6.3094]
[1752336245537,0.04189019,158.46,158.45,3.46]
[1752336246840,6.35039019,158.46,158.45,3.46]
[1752336247041,8.59039019,158.46,158.4,5.20573961]
[1752336247347,2.28189019,158.46,158.45,3.46]
[1752336248047,0.04189019,158.46,158.45,3.46]
[1752336249549,0.04189019,158.46,158.45,9.7689]
[1752336249938,2.24,158.5,158.46,3.46]
[1752336250146,2.24,158.52,158.47,3.46]
[1752336250645,2.24,158.52,158.49,6.3071]
[1752336250854,2.24,158.52,158.51,3.46]
[1752336251046,546.07822485,158.54,158.48,5.20573961]
[1752336251248,546.07822485,158.54,158.49,0.04321345]
[1752336251550,2.24,158.53,158.49,0.04321345]
[1752336251748,8.546,158.53,158.51,3.46]
[1752336251943,546.07822485,158.54,158.49,0.04321345]
[1752336252143,8.5463,158.52,158.5,3.46]
[1752336252348,2.24,158.51,158.5,3.46]
[1752336252649,188.64,158.53,158.5,3.46]
[1752336252850,2.24,158.52,158.5,3.46]
[1752336253046,3.33822485,158.54,158.5,3.46]
[1752336253442,7.40372485,158.54,158.51,6.3065]
[1752336253641,7.40372485,158.54,158.52,3.46]
[1752336253840,1.09822485,158.54,158.52,9.7659]
[1752336254045,6.3052,158.55,158.53,3.46]
[1752336254247,186.4,158.56,158.5,3.46]
[1752336254448,8.5456,158.54,158.51,6.3063]
[1752336254653,8.5456,158.54,158.52,3.46]
[1752336254856,8.5456,158.54,158.53,3.61]
[1752336255154,6.3056,158.54,158.53,3.61]
[1752336255657,6.3057,158.53,158.52,3.65505662]
[1752336255848,8.5357,158.53,158.52,0.04505662]
[1752336258357,6.3057,158.53,158.52,3.65505662]
[1752336258549,8.5355,158.54,158.52,3.65505662]
[1752336258750,2.23,158.56,158.54,3.61]
[1752336258956,2.23,158.55,158.54,3.61]
[1752336259255,3.3278957,158.57,158.52,0.04505662]
[1752336259453,3.3278957,158.57,158.53,3.61]
[1752336259651,6.305,158.55,158.53,3.61]
[1752336259853,6.305,158.55,158.54,3.61]
[1752336260555,6.305,158.55,158.52,6.35075662]
[1752336260556,8.5354,158.54,158.52,0.04505662]
[1752336260755,8.5354,158.54,158.52,3.65505662]
[1752336261059,8.5357,158.53,158.52,0.04505662]
[1752336261757,6.3057,158.53,158.52,3.65505662]
[1752336262458,8.5357,158.53,158.52,3.65505662]
[1752336262658,8.5357,158.53,158.52,0.04505662]
[1752336263159,8.5374,158.49,158.47,3.61]
[1752336263350,2.23,158.49,158.48,3.61]
[1752336263554,2.23,158.51,158.48,3.61]
[1752336263760,2.23,158.49,158.46,3.61]
[1752336263962,2.23,158.48,158.46,3.61]
[1752336264354,8.5378,158.48,158.46,3.61]
[1752336264558,2.23,158.48,158.46,3.61]
[1752336264757,6.3081,158.47,158.46,3.61]
[1752336264957,2.23,158.48,158.46,3.61]
[1752336265957,6.3081,158.47,158.46,3.61]
[1752336266859,6.3081,158.47,158.44,6.3092]
[1752336267058,2.23,158.47,158.42,8.90910965]
[1752336267363,0.04733684,158.49,158.44,3.61]
[1752336267663,2.27733684,158.49,158.44,3.61]
[1752336267862,2.23,158.48,158.44,3.61]
[1752336268158,8.58425508,158.48,158.45,6.3086]
[1752336268465,0.04635508,158.48,158.47,3.61]
[1752336268959,6.35405508,158.48,158.47,3.61]
[1752336270561,0.04635508,158.48,158.47,3.61]
[1752336271056,0.04635508,158.48,158.47,15.12383961]
[1752336271261,545.02,158.52,158.48,3.61]
[1752336271462,188.61,158.54,158.48,3.61]
[1752336271653,188.61,158.54,158.5,3.61]
[1752336271654,2.23,158.54,158.5,3.61]
[1752336271859,5.20573961,158.58,158.5,3.61]
[1752336271860,186.38,158.55,158.5,3.61]
[1752336272161,188.61,158.55,158.5,3.61]
[1752336272563,6.3053,158.54,158.52,3.61]
[1752336272752,6.3053,158.54,158.53,3.61]
[1752336272957,8.5353,158.54,158.53,3.61]
[1752336273562,6.3053,158.54,158.53,3.61]
[1752336274866,8.5353,158.54,158.53,3.61]
[1752336275165,8.5353,158.54,158.52,3.61]
[1752336275557,6.3051,158.55,158.52,6.3061]
[1752336275764,188.59,158.54,158.52,3.61]
[1752336276159,194.8956,158.54,158.52,3.61]
[1752336276665,194.8956,158.54,158.53,3.61]
[1752336276962,6.3058,158.53,158.51,0.04617083]
[1752336277170,6.3058,158.53,158.52,3.61]
[1752336277666,192.6655,158.54,158.52,3.61]
[1752336277868,188.59,158.54,158.52,3.61]
[1752336278065,186.36,158.54,158.53,3.61]
[1752336278268,186.36,158.54,158.51,0.04617083]
[1752336278269,192.6652,158.55,158.54,3.61]
[1752336278466,6.3052,158.55,158.54,3.61]
[1752336278870,192.6652,158.55,158.54,3.61]
[1752336279968,6.3052,158.55,158.54,3.61]
[1752336280174,186.34,158.55,158.52,3.61]
[1752336280569,192.645,158.55,158.54,3.61]
[1752336281476,186.34,158.55,158.54,3.61]
[1752336282375,6.3047,158.56,158.55,3.61]
[1752336282674,192.6447,158.56,158.55,3.61]
[1752336283976,6.3054,158.54,158.53,3.61]
[1752336284370,6.3054,158.54,158.52,5.20573961]
[1752336284371,2.23,158.54,158.52,3.61]
[1752336284671,2.23,158.54,158.51,0.04617083]
[1752336284672,2.23,158.54,158.53,3.61]
[1752336285476,2.23,158.54,158.51,0.04617083]
[1752336285675,2.23,158.52,158.51,0.04617083]
[1752336285867,8.5362,158.52,158.51,0.04617083]
[1752336286470,6.3062,158.52,158.51,3.45617083]
[1752336286767,8.5362,158.52,158.51,0.04617083]
[1752336287368,8.5362,158.52,158.51,3.45617083]
[1752336287773,8.5362,158.52,158.51,0.04617083]
[1752336287974,6.307,158.5,158.49,3.41]
[1752336289179,2.23,158.47,158.45,3.41]
[1752336289380,2.23,158.47,158.46,3.41]
[1752336289577,6.3081,158.47,158.46,3.41]
[1752336290376,6.35017202,158.48,158.46,3.41]
[1752336290576,192.67017202,158.48,158.46,3.41]
[1752336290875,5.35209792,158.51,158.45,6.3089]
[1752336290876,6.3068,158.51,158.47,3.12101013]
[1752336291076,186.32,158.51,158.48,3.41]
[1752336291276,186.32,158.53,158.48,3.41]
[1752336291470,186.32,158.53,158.47,3.12101013]
[1752336291471,6.3062,158.52,158.5,3.41]
[1752336291782,2.23,158.55,158.5,3.41]
[1752336291982,6.306,158.53,158.5,9.7166]
[1752336292281,6.306,158.53,158.52,3.41]
[1752336293270,2.23,158.53,158.5,3.41]
[1752336293576,2.23,158.52,158.51,3.41]
[1752336294281,6.3065,158.52,158.51,3.41]
[1752336294478,8.5365,158.52,158.51,3.41]
[1752336295183,6.3065,158.52,158.51,3.41]
[1752336295682,8.5365,158.52,158.51,3.41]
[1752336295883,6.307,158.5,158.46,10.49744007]
[1752336296077,6.307,158.5,158.49,3.41]
[1752336296381,2.23,158.51,158.47,3.41]
[1752336296577,2.23,158.49,158.47,3.41]
[1752336296981,6.3079,158.48,158.47,3.41]
[1752336298177,2.23,158.48,158.44,5.29712037]
[1752336298378,2.23,158.47,158.45,3.41]
[1752336298579,2.23,158.49,158.44,3.41]
[1752336298781,6.308,158.48,158.44,3.41]
[1752336299082,186.32,158.5,158.44,3.41]
[1752336299279,6.3071,158.5,158.44,5.29712037]
[1752336299479,6.3071,158.5,158.45,3.41]
[1752336299778,186.32,158.51,158.45,8.70712037]
[1752336299983,186.32,158.51,158.46,3.41]
[1752336300383,6.3072,158.5,158.48,3.41]
[1752336300682,188.55,158.52,158.47,6.308]
[1752336300881,188.55,158.52,158.45,5.29712037]
[1752336300882,5.2003197,158.51,158.45,3.41]
[1752336301088,6.3086,158.46,158.45,3.41]
[1752336301786,6.3084,158.47,158.45,3.41]
[1752336301984,2.23,158.49,158.45,3.41]
[1752336301985,2.23,158.49,158.46,6.3085]
[1752336302186,6.307,158.5,158.47,3.41]
[1752336302686,6.3067,158.51,158.48,3.41]
[1752336302877,2.23,158.54,158.48,3.41]
[1752336303076,188.55,158.54,158.48,9.7176]
[1752336303276,188.55,158.54,158.5,3.41]
[1752336303277,6.3066,158.51,158.5,3.41]
[1752336303478,8.5366,158.51,158.5,3.41]
[1752336304585,186.32,158.53,158.45,5.29712037]
[1752336304892,2.23,158.51,158.45,3.41]
[1752336305184,188.55,158.51,158.45,3.41]
[1752336305579,2.23,158.5,158.45,9.7187]
[1752336305786,186.32,158.51,158.47,3.41]
[1752336306085,2.23,158.49,158.47,3.41]
[1752336306285,2.23,158.49,158.45,6.3087]
[1752336306488,7.4303197,158.5,158.45,3.41]
[1752336306787,2.23,158.48,158.45,3.41]
[1752336306986,6.3086,158.46,158.44,3.41]
[1752336307486,6.309,158.45,158.44,3.41]
[1752336307675,2.23,158.47,158.45,3.41]
[1752336307876,2.23,158.47,158.46,3.41]
[1752336308186,2.23,158.48,158.44,3.41]
[1752336308388,2.23,158.47,158.45,3.41]
[1752336308577,5.2003197,158.48,158.43,3.41]
[1752336308778,5.2003197,158.46,158.43,3.41]
[1752336308985,2.23,158.45,158.43,3.41]
[1752336309183,6.3094,158.44,158.43,3.41]
[1752336309393,5.2003197,158.48,158.41,5.29712037]
[1752336309583,2.23,158.47,158.42,3.41]
[1752336309891,2.23,158.47,158.41,3.41]
[1752336310485,5.2003197,158.46,158.4,6.3107]
[1752336310689,2.23,158.44,158.42,3.41]
[1752336311288,2.23,158.42,158.36,3.41]
[1752336311488,2.23,158.38,158.36,3.41]
[1752336311791,6.3117,158.38,158.37,3.41]
[1752336313091,8.5417,158.38,158.37,3.41]
[1752336313988,2.23,158.37,158.32,3.41]
[1752336314186,7.43831924,158.39,158.32,3.41]
[1752336314382,6.312,158.38,158.34,6.3131]
[1752336314589,6.312,158.38,158.35,3.41]
[1752336314886,576.6251,158.49,158.35,3.41]
[1752336314887,186.34,158.42,158.35,3.41]
[1752336315085,186.34,158.42,158.37,6.3119]
[1752336315284,188.58,158.42,158.37,6.3119]
[1752336315592,2.24,158.41,158.39,3.47]
[1752336317789,186.38,158.42,158.39,3.47]
[1752336317984,5.20837733,158.44,158.35,5.20837733]
[1752336318185,188.62,158.45,158.38,3.47]
[1752336318590,2.24,158.45,158.41,6.3103]
[1752336318896,556.79547733,158.5,158.41,5.20837733]
[1752336319091,188.62,158.49,158.42,3.47]
[1752336319688,2.24,158.48,158.46,3.47]
[1752336320294,188.62,158.48,158.46,3.47]
[1752336320793,194.9279,158.48,158.46,3.47]
[1752336320994,2.24,158.47,158.46,3.47]
[1752336321197,2.24,158.47,158.44,6.3092]
[1752336321394,2.24,158.47,158.45,3.47]
[1752336321598,188.6,158.47,158.45,3.47]
[1752336322094,186.36,158.47,158.46,3.47]
[1752336322999,188.6,158.47,158.46,3.47]
[1752336323195,2.24,158.47,158.46,3.47]
[1752336323394,188.6,158.47,158.46,3.47]
[1752336323696,545.28,158.5,158.44,3.47]
[1752336323996,186.36,158.49,158.45,3.47]
[1752336324191,545.28,158.5,158.45,3.47]
[1752336324389,731.64,158.5,158.45,3.47]
[1752336324596,731.64,158.5,158.49,3.47]
[1752336324991,739.08837733,158.5,158.42,3.47]
[1752336325197,2.24,158.49,158.42,3.47]
[1752336325487,8.5478,158.49,158.42,3.47]
[1752336325798,2.24,158.45,158.43,3.47]
[1752336326097,186.36,158.44,158.43,3.47]
[1752336326795,2.24,158.48,158.45,3.47]
[1752336326994,186.36,158.47,158.46,3.47]
[1752336327193,194.9085,158.47,158.46,3.47]
[1752336327699,8.5485,158.47,158.46,3.47]
[1752336327895,192.6685,158.47,158.46,3.47]
[1752336329000,6.3085,158.47,158.46,3.47]
[1752336329299,545.28,158.5,158.4,10.5054977]
[1752336329300,547.52,158.5,158.41,3.47]
[1752336329595,186.34,158.49,158.46,6.3083]
[1752336330000,553.8273,158.5,158.48,3.47]
[1752336330297,553.8273,158.5,158.49,3.47]
[1752336330298,551.5873,158.5,158.49,3.47]
[1752336330499,737.9273,158.5,158.49,3.47]
[1752336331292,551.5873,158.5,158.49,3.47]
[1752336331492,737.9273,158.5,158.49,3.47]
[1752336331903,545.28,158.5,158.49,3.47]
[1752336332103,186.34,158.5,158.49,3.47]
[1752336336203,186.34,158.5,158.49,9.7774]
[1752336336808,192.6062,158.52,158.49,6.3074]
[1752336337110,192.6062,158.52,158.5,3.47]
[1752336338711,186.3,158.52,158.5,9.7767]
[1752336338906,186.3,158.52,158.51,3.47]
[1752336339098,186.3,158.52,158.46,8.41664143]
[1752336339305,6.3066,158.51,158.48,3.47]
[1752336339505,186.26,158.52,158.48,3.11952106]
[1752336339704,186.26,158.52,158.49,3.47]
[1752336339905,186.26,158.52,158.51,3.47]
[1752336342110,192.5662,158.52,158.51,3.47]
[1752336342509,186.26,158.52,158.51,3.47]
[1752336342712,192.5662,158.52,158.51,3.47]
[1752336344411,6.3062,158.52,158.51,3.47]
[1752336344615,192.5462,158.52,158.51,3.47]
[1752336345114,6.306,158.53,158.51,3.47]
[1752336345517,186.24,158.53,158.51,9.7765]
[1752336345715,5.35952106,158.55,158.51,3.33]
[1752336346013,186.24,158.54,158.51,3.33]
[1752336346213,192.5458,158.54,158.51,9.6366]
[1752336346613,192.5458,158.54,158.52,3.33]
[1752336346815,6.3058,158.54,158.52,3.33]
[1752336347010,186.22,158.53,158.52,3.33]
[1752336347816,1.0978957,158.57,158.52,3.33]
[1752336348008,188.46,158.56,158.52,3.33]
[1752336348318,188.46,158.55,158.52,3.33]
[1752336348617,6.3054,158.54,158.52,3.33]
[1752336348916,188.46,158.55,158.52,3.33]
[1752336349116,6.3054,158.54,158.53,3.33]
[1752336350115,2.24,158.54,158.51,3.33]
[1752336350318,2.24,158.54,158.5,0.04030634]
[1752336350623,11.66532106,158.53,158.52,3.33]
[1752336351423,6.3058,158.53,158.52,3.33]
[1752336351913,2.24,158.56,158.52,6.3061]
[1752336352116,186.2,158.55,158.53,3.33]
[1752336352319,186.2,158.55,158.54,3.33]
[1752336352521,188.44,158.55,158.54,3.33]
[1752336352720,194.745,158.55,158.54,3.33]
[1752336354118,192.505,158.55,158.54,3.33]
[1752336355425,192.505,158.55,158.51,6.3063]
[1752336355724,2.24,158.52,158.5,0.04030634]
[1752336355918,2.24,158.5,158.43,5.29712037]
[1752336356116,2.24,158.5,158.41,3.33]
[1752336356117,2.24,158.44,158.41,5.29712037]
[1752336356321,188.42,158.44,158.42,3.33]
[1752336356526,3.11952106,158.56,158.39,5.29712037]
[1752336356725,205.11,158.55,158.43,3.33]
[1752336356926,2.24,158.47,158.43,3.33]
[1752336357122,188.42,158.46,158.44,3.33]
[1752336357324,2.24,158.44,158.4,3.33]
[1752336357626,3.11952106,158.48,158.44,3.33]
[1752336357828,186.2,158.47,158.44,3.33]
[1752336358023,3.11952106,158.48,158.44,3.33]
[1752336358024,2.28078673,158.48,158.44,3.33]
[1752336358230,186.24078673,158.48,158.47,3.33]
[1752336358623,192.54858673,158.48,158.47,3.33]
[1752336358925,192.54858673,158.48,158.35,7.05501655]
[1752336358926,2.24,158.46,158.4,5.29712037]
[1752336359124,2.24,158.45,158.39,3.33]
[1752336359323,186.2,158.44,158.39,8.62712037]
[1752336359523,186.2,158.44,158.42,3.33]
[1752336360125,186.2,158.44,158.43,6.3098]
[1752336360321,186.2,158.44,158.43,3.33]
[1752336361831,0.04183714,158.45,158.43,3.33]
[1752336362027,2.24,158.5,158.46,6.3083]
[1752336362232,18.92243797,158.57,158.47,3.33]
[1752336362233,2.24,158.51,158.47,3.33]
[1752336362422,6.31373797,158.57,158.47,6.45293975]
[1752336362732,2.24,158.52,158.46,3.33]
[1752336362925,2.24,158.5,158.45,3.12293975]
[1752336363130,2.24,158.5,158.46,3.33]
[1752336363734,2.24,158.5,158.46,3.37165557]
[1752336364027,3.12293975,158.53,158.47,3.33]
[1752336364028,2.24,158.52,158.47,3.33]
[1752336364228,188.44,158.51,158.47,3.33]
[1752336364533,2.24,158.5,158.48,3.33]
[1752336364735,2.24,158.5,158.46,3.37165557]
[1752336365032,2.24,158.48,158.46,3.37165557]
[1752336365631,8.5477,158.49,158.47,3.33]
[1752336366230,2.24,158.47,158.46,0.04165557]
[1752336366534,5.36293975,158.47,158.46,0.04165557]
[1752336366836,11.67113975,158.47,158.46,0.04165557]
[1752336367524,2.24,158.47,158.46,0.04165557]
[1752336368231,2.24,158.48,158.46,3.37165557]
[1752336368434,2.24,158.47,158.46,0.04165557]
[1752336368935,8.5482,158.47,158.46,0.04165557]
[1752336369234,2.24,158.49,158.46,0.04165557]
[1752336369427,8.33878202,158.56,158.46,0.04165557]
[1752336369428,2.24,158.52,158.46,0.04165557]
[1752336369629,186.22,158.51,158.46,3.16459532]
[1752336369829,188.46,158.51,158.47,3.33]
[1752336370331,194.7668,158.51,158.48,6.3078]
[1752336370534,194.7668,158.51,158.49,3.33]
[1752336370732,186.22,158.51,158.46,3.16459532]
[1752336371033,2.24,158.5,158.48,3.33]
[1752336371335,8.5472,158.5,158.48,3.33]
[1752336371836,6.3072,158.5,158.49,3.33]
[1752336372932,8.5463,158.52,158.49,3.33]
[1752336373133,186.2,158.51,158.47,3.33]
[1752336373328,188.44,158.51,158.47,3.33]
[1752336373635,2.24,158.53,158.48,6.45293975]
[1752336373834,2.24,158.53,158.49,3.33]
[1752336374034,8.546,158.53,158.49,9.6371]
[1752336374236,8.546,158.53,158.5,3.33]
[1752336374441,8.546,158.53,158.49,6.3071]
[1752336374632,8.546,158.53,158.51,3.33]
[1752336374937,2.23,158.51,158.49,3.55]
[1752336375134,3.12293975,158.53,158.5,3.55]
[1752336375443,8.5364,158.52,158.5,3.55]
[1752336375630,2.23,158.52,158.5,3.55]
[1752336376035,6.3066,158.51,158.5,3.55]
[1752336376236,2.23,158.52,158.5,3.55]
[1752336376537,8.5364,158.52,158.51,3.55]
[1752336376934,188.43,158.54,158.52,3.55]
[1752336377135,3.12293975,158.56,158.53,3.55]
[1752336377333,2.23,158.54,158.53,3.55]
[1752336377634,1.0978957,158.57,158.51,3.12293975]
[1752336377836,186.18,158.56,158.52,3.59248092]
[1752336378230,188.41,158.56,158.52,6.34848092]
[1752336378431,2.23,158.56,158.53,3.55]
[1752336378637,194.7149,158.56,158.54,3.55]
[1752336379438,8.5349,158.56,158.54,3.55]
[1752336379638,194.7149,158.56,158.54,3.55]
[1752336381041,8.5349,158.56,158.54,3.55]
[1752336381239,186.18,158.55,158.54,3.55]
[1752336382637,186.16,158.55,158.54,3.55]
[1752336383836,3.3278957,158.57,158.54,3.55]
[1752336384139,186.16,158.56,158.54,3.55]
[1752336384337,192.4646,158.56,158.54,3.55]
[1752336384542,186.16,158.56,158.54,3.55]
[1752336385339,7.4023957,158.57,158.55,3.55]
[1752336385340,186.14,158.57,158.55,3.55]
[1752336386242,186.14,158.57,158.54,6.3052]
[1752336386445,186.14,158.57,158.56,3.55]
[1752336387645,194.6742,158.57,158.55,3.55]
[1752336387834,194.6742,158.57,158.53,6.3057]
[1752336388033,194.6742,158.57,158.56,3.55]
[1752336388341,192.4242,158.57,158.56,3.55]
[1752336389438,186.12,158.57,158.56,3.55]
[1752336390148,186.12,158.57,158.56,9.8546]
[1752336390439,186.12,158.57,158.56,3.55]
[1752336391245,2.23,158.56,158.54,3.55]
[1752336391435,186.1,158.55,158.54,3.55]
[1752336393345,192.405,158.55,158.54,3.55]
[1752336394047,186.1,158.55,158.54,3.55]
[1752336395642,186.08,158.56,158.54,3.55]
[1752336395839,186.08,158.56,158.54,9.8551]
[1752336396043,186.08,158.56,158.54,12.97803975]
[1752336396245,186.08,158.56,158.55,3.55]
[1752336396544,186.08,158.56,158.55,9.855]
[1752336396946,186.08,158.56,158.55,3.55]
[1752336397754,186.08,158.56,158.55,9.855]
[1752336398951,551.504,158.58,158.56,6.3045]
[1752336399250,545.2,158.58,158.57,3.55]
[1752336399446,731.28,158.58,158.57,3.55]
[1752336400348,545.2,158.58,158.57,9.8542]
[1752336400551,733.49,158.58,158.55,3.59200269]
[1752336400847,734.38293975,158.58,158.55,0.04200269]
[1752336401045,2.23,158.56,158.55,3.59200269]
[1752336401248,549.42069692,158.58,158.56,3.55]
[1752336401447,188.29,158.57,158.56,3.55]
[1752336402149,194.5945,158.57,158.56,3.55]
[1752336402849,8.5345,158.57,158.56,3.55]
[1752336403048,194.5945,158.57,158.56,3.55]